bitfinex/quotes_ETHUSD_20251018
["timestamp","ask_amount","ask_price","bid_price","bid_amount"]
[1760773269561,0.55106543,3910.5,3910.1,0.1657]
[1760773269761,2.619,3910.6,3910.5,2.55721774]
[1760773270386,0.001,3910.6,3910.5,3.75521774]
[1760773270879,0.001,3910.6,3910.5,3.31801774]
[1760773271069,0.001,3910.6,3910.5,2.68441774]
[1760773271597,0.001,3910.6,3910.5,3.12161774]
[1760773271955,0.001,3910.6,3910.5,3.14718991]
[1760773272195,0.001,3910.6,3910.5,3.12161774]
[1760773272491,0.001,3910.6,3910.5,2.68441774]
[1760773275562,0.4552,3910.6,3910.0,0.002]
[1760773275764,0.55114274,3910.5,3910.0,0.002]
[1760773275982,3.20009906,3910.4,3910.0,0.002]
[1760773276294,2.55741394,3910.2,3910.0,0.002]
[1760773276591,0.55114274,3910.1,3910.0,0.002]
[1760773276786,1.00534274,3910.1,3910.0,0.002]
[1760773277288,2.618,3910.1,3910.0,0.002]
[1760773277487,2.618,3910.1,3910.0,2.55954475]
[1760773278968,3.0722,3910.1,3910.0,0.002]
[1760773279792,3.0722,3910.1,3910.0,2.55954475]
[1760773280110,3.0722,3910.1,3910.0,0.002]
[1760773280290,3.0722,3910.1,3910.0,2.55954475]
[1760773280584,2.618,3910.1,3910.0,2.55954475]
[1760773283186,2.618,3910.1,3910.0,0.002]
[1760773283358,3.0722,3910.1,3910.0,0.002]
[1760773283559,3.0722,3910.1,3910.0,2.55954475]
[1760773283757,3.0722,3910.1,3910.0,0.002]
[1760773285387,3.0722,3910.1,3910.0,2.55954475]
[1760773285798,2.618,3910.1,3910.0,2.55954475]
[1760773286882,3.0722,3910.1,3910.0,0.002]
[1760773287084,2.618,3910.1,3910.0,2.55954475]
[1760773287712,3.0722,3910.1,3910.0,0.002]
[1760773288930,3.11676802,3910.1,3910.0,0.002]
[1760773289313,3.11676802,3910.1,3910.0,2.55954475]
[1760773289622,3.11676802,3910.1,3910.0,0.002]
[1760773290319,3.11676802,3910.1,3910.0,2.55954475]
[1760773290837,0.001,3910.4,3910.3,2.55734854]
[1760773297227,2.617,3910.4,3910.0,2.55954316]
[1760773297428,3.0661,3910.4,3910.1,2.55742419]
[1760773297630,3.0661,3910.4,3910.1,2.55747934]
[1760773297934,2.617,3910.4,3910.3,2.55734854]
[1760773298438,3.0661,3910.4,3910.2,2.5573863]
[1760773298602,2.617,3910.4,3910.2,2.5573863]
[1760773298800,2.617,3910.4,3910.0,0.002]
[1760773299010,0.48105632,3910.3,3910.0,2.55954076]
[1760773299210,0.4491,3910.2,3910.0,0.002]
[1760773299410,2.616,3910.1,3910.0,2.55954468]
[1760773300842,3.6168161,3910.1,3910.0,0.002]
[1760773301345,3.0651,3910.1,3910.0,0.002]
[1760773301507,0.04456672,3910.2,3910.0,0.002]
[1760773301838,3.0641,3910.1,3910.0,0.002]
[1760773302045,3.09605632,3910.1,3910.0,0.002]
[1760773302221,2.615,3910.1,3910.0,0.002]
[1760773302407,2.615,3910.1,3910.0,2.55954475]
[1760773302612,0.001,3910.4,3910.1,2.5574146]
[1760773302811,1.19,3910.3,3910.2,2.55739712]
[1760773303222,1.19,3910.3,3910.2,2.55741394]
[1760773304407,1.19,3910.3,3910.1,2.55746584]
[1760773304942,1.19,3910.3,3910.2,2.55741394]
[1760773307342,0.001,3910.4,3910.3,2.55734854]
[1760773307548,2.616,3910.4,3910.3,2.55734854]
[1760773308310,2.616,3910.4,3910.3,3.01524854]
[1760773308830,0.001,3910.4,3910.3,3.64884854]
[1760773309916,0.001,3910.4,3910.3,3.19094854]
[1760773310738,0.001,3910.4,3910.3,3.31814854]
[1760773310941,0.001,3910.4,3910.3,3.77604854]
[1760773312031,0.001,3910.4,3910.3,3.31814854]
[1760773313918,0.001,3910.4,3910.3,11.31814854]
[1760773314567,0.001,3910.4,3910.3,10.55734854]
[1760773318158,0.4501,3910.4,3910.3,8.0]
[1760773318343,0.001,3910.4,3910.3,8.0]
[1760773318735,0.001,3910.4,3910.3,10.55734854]
[1760773318736,2.614,3910.4,3910.3,10.55734854]
[1760773318936,0.001,3910.4,3910.3,10.55734854]
[1760773319143,2.614,3910.4,3910.3,10.55734854]
[1760773319364,0.001,3910.4,3910.3,10.55734854]
[1760773319659,0.001,3910.4,3910.3,11.01134854]
[1760773320947,0.001,3910.4,3910.3,10.55734854]
[1760773322043,0.001,3910.4,3910.3,11.01134854]
[1760773322570,0.001,3910.4,3910.3,11.01334854]
[1760773323960,0.001,3910.4,3910.3,11.64694854]
[1760773324438,0.001,3910.4,3910.3,11.77414854]
[1760773325738,0.001,3910.4,3910.3,13.04814854]
[1760773325943,0.001,3910.8,3910.7,3.19068696]
[1760773326138,0.03195296,3912.0,3910.8,4.28502158]
[1760773326465,0.03195214,3912.1,3912.0,2.55623721]
[1760773326850,0.4286,3912.1,3912.0,2.55623721]
[1760773327167,0.4286,3912.1,3911.9,2.5562842]
[1760773327366,3.28605296,3912.0,3911.7,2.55642593]
[1760773327573,0.4286,3911.9,3911.7,2.55642593]
[1760773327770,0.4286,3911.8,3911.7,2.55642593]
[1760773328165,0.4286,3911.8,3911.7,2.55643326]
[1760773329571,0.4286,3911.8,3911.6,2.55649329]
[1760773329742,2.98465296,3912.0,3911.3,0.1272]
[1760773329937,2.85745296,3912.0,3911.5,2.55651453]
[1760773330275,0.1272,3911.8,3911.6,2.55649215]
[1760773330455,0.1272,3911.8,3911.4,2.55661619]
[1760773330777,0.4286,3911.7,3911.6,2.55644598]
[1760773331271,0.4286,3911.7,3910.4,4.28528314]
[1760773331464,0.47315591,3911.7,3911.2,2.55673106]
[1760773331774,0.4286,3911.6,3911.2,2.55673106]
[1760773331943,0.4286,3911.5,3911.2,2.55673106]
[1760773332277,3.0376,3911.4,3911.2,2.55673106]
[1760773332578,2.611,3911.3,3911.2,2.55673106]
[1760773332874,3.0396,3911.3,3911.1,2.55681292]
[1760773333076,2.611,3911.3,3910.4,2.3616]
[1760773333376,0.46055632,3911.2,3910.3,8.002]
[1760773333675,0.4286,3911.1,3910.3,10.55933921]
[1760773333971,0.46055632,3911.0,3910.5,2.55716835]
[1760773334170,0.6431,3910.9,3910.5,2.55716835]
[1760773334484,0.46055632,3910.8,3910.6,2.55713998]
[1760773334681,3.0386,3910.7,3910.6,2.55713998]
[1760773335176,3.0386,3910.7,3910.4,2.5572321]
[1760773335542,0.46055632,3910.6,3910.3,10.55933151]
[1760773335971,0.46055632,3910.6,3910.4,2.55728097]
[1760773336550,0.46055632,3910.6,3910.5,1.728]
[1760773338474,0.03195632,3910.6,3910.5,1.728]
[1760773338680,0.0445628,3911.1,3910.7,1.728]
[1760773338846,0.0445628,3911.1,3911.0,2.55689082]
[1760773339047,1.8575628,3911.1,3911.0,2.55689082]
[1760773339251,0.0445628,3911.1,3911.0,2.55689082]
[1760773339578,2.609,3911.1,3911.0,4.72049082]
[1760773340075,2.609,3911.1,3911.0,4.28489082]
[1760773340455,2.609,3911.1,3911.0,2.55689082]
[1760773342781,2.609,3911.1,3911.0,4.28489082]
[1760773344262,2.609,3911.1,3910.9,0.1272]
[1760773344492,0.4286,3911.0,3910.0,0.6356]
[1760773344662,0.7703,3910.9,3910.3,8.1292]
[1760773344865,0.3417,3910.9,3910.6,2.55713147]
[1760773345076,0.1272,3910.9,3910.6,2.55713147]
[1760773345492,0.5558,3910.9,3910.5,2.55720215]
[1760773345798,0.46055632,3910.8,3910.3,8.002]
[1760773345964,0.98015353,3910.7,3910.3,8.002]
[1760773346163,3.61913771,3910.6,3910.3,8.002]
[1760773346495,0.4286,3910.5,3910.3,8.002]
[1760773346671,0.03195632,3910.4,3910.3,8.002]
[1760773346865,0.46055632,3910.4,3910.3,8.002]
[1760773347876,3.01783946,3910.4,3910.3,8.002]
[1760773348075,1.01195631,3910.4,3910.3,8.002]
[1760773348573,3.56923945,3910.4,3910.3,8.002]
[1760773349572,1.01195631,3910.4,3910.3,8.002]
[1760773349768,3.56923945,3910.4,3910.3,8.002]
[1760773350770,5.29723945,3910.4,3910.3,8.002]
[1760773350970,5.26528313,3910.4,3910.3,8.002]
[1760773353493,0.55139999,3910.4,3910.3,8.002]
[1760773353790,2.607,3910.4,3910.3,8.002]
[1760773354506,2.65156815,3910.4,3910.3,8.002]
[1760773357709,7.94337737,3910.4,3910.3,8.002]
[1760773357874,8.25895556,3910.4,3910.3,8.002]
[1760773359090,19.17201241,3910.4,3910.3,8.002]
[1760773359290,18.56788534,3910.1,3910.0,0.002]
[1760773359523,22.34204456,3910.1,3910.0,0.002]
[1760773359820,17.56415656,3910.1,3910.0,0.002]
[1760773360202,16.3264606,3910.1,3910.0,0.002]
[1760773360539,11.99357918,3910.1,3910.0,0.002]
[1760773360692,15.44961725,3910.1,3910.0,0.002]
[1760773361007,14.29761725,3910.1,3910.0,0.002]
[1760773361392,14.60057918,3910.1,3910.0,0.002]
[1760773362202,15.01358618,3910.1,3910.0,0.002]
[1760773362402,17.62058618,3910.1,3910.0,0.002]
[1760773363191,14.60057918,3910.1,3910.0,0.002]
[1760773365808,25.66596918,3910.1,3910.0,0.002]
[1760773366521,23.84156218,3910.1,3910.0,0.002]
[1760773366722,17.67404418,3910.1,3910.0,0.002]
[1760773367416,18.07528183,3910.1,3910.0,0.002]
[1760773368229,19.00051408,3910.1,3910.0,0.002]
[1760773369824,15.63541683,3910.1,3910.0,0.002]
[1760773371604,24.8129349,3910.1,3910.0,0.002]
[1760773371798,21.2175259,3910.1,3910.0,0.002]
[1760773372828,8.93780642,3909.6,3909.5,0.002]
[1760773373129,18.34800118,3909.6,3909.5,0.002]
[1760773373317,18.81700118,3909.6,3909.5,0.002]
[1760773373518,19.26283883,3909.6,3909.5,0.002]
[1760773373706,18.79383883,3909.6,3909.5,0.002]
[1760773374301,19.26283883,3909.6,3909.5,0.002]
[1760773374629,18.86158283,3909.6,3909.5,0.002]
[1760773376431,18.39258283,3909.6,3909.5,0.002]
[1760773378126,13.86552598,3909.6,3909.5,0.002]
[1760773378432,11.26052598,3909.6,3909.5,0.002]
[1760773378633,13.86452598,3909.6,3909.5,0.002]
[1760773380311,11.26052598,3909.6,3909.5,0.002]
[1760773380634,13.86452598,3909.6,3909.5,0.002]
[1760773383061,14.16748791,3909.6,3909.5,0.002]
[1760773383413,13.86452598,3909.6,3909.5,0.002]
[1760773384127,11.26052598,3909.6,3909.5,0.002]
[1760773384328,13.86452598,3909.6,3909.5,0.002]
[1760773385212,15.23259536,3909.6,3909.5,0.002]
[1760773385516,13.86452598,3909.6,3909.5,0.002]
[1760773385714,6.97471956,3909.6,3909.5,0.474]
[1760773385908,3.19871956,3909.6,3909.5,0.474]
[1760773386109,3.19871956,3909.6,3909.5,3.03187185]
[1760773386342,3.15413791,3909.6,3909.5,3.03187185]
[1760773387534,2.604,3909.6,3909.5,3.15907185]
[1760773388362,0.001,3910.1,3910.0,2.55754475]
[1760773388530,2.605,3910.1,3910.0,2.55754475]
[1760773388857,2.605,3910.1,3910.0,3.02954475]
[1760773389160,2.64957125,3910.1,3910.0,3.02954475]
[1760773389474,3.20102294,3910.1,3910.0,0.472]
[1760773389615,3.50398487,3910.1,3909.6,0.472]
[1760773389934,0.58340801,3910.0,3909.6,0.472]
[1760773390131,0.55145169,3909.9,3909.6,0.472]
[1760773390310,0.55134942,3909.9,3909.7,0.472]
[1760773390520,2.604,3909.8,3909.7,3.02971755]
[1760773391612,2.604,3909.8,3909.7,0.472]
[1760773392021,2.604,3909.8,3909.5,0.002]
[1760773392325,0.03195632,3909.7,3909.5,0.002]
[1760773393121,0.55109856,3909.6,3909.5,0.002]
[1760773393612,0.58305488,3909.7,3909.5,0.002]
[1760773394844,0.62763677,3909.7,3909.5,0.002]
[1760773395449,7.00763677,3909.7,3909.5,0.002]
[1760773395644,0.55109856,3909.6,3909.5,0.002]
[1760773396346,0.55109856,3909.6,3909.5,0.474]
[1760773396525,6.42458189,3909.7,3909.5,0.474]
[1760773396931,2.604,3909.6,3909.5,0.474]
[1760773398223,3.1870328,3909.6,3909.5,0.002]
[1760773398819,2.604,3909.6,3909.5,0.474]
[1760773399420,2.604,3909.6,3909.5,3.03187185]
[1760773399639,6.55178189,3909.7,3909.6,2.55780642]
[1760773399951,9.02858189,3909.7,3909.6,3.02980642]
[1760773401221,0.04458189,3909.7,3909.6,3.66340642]
[1760773401523,2.64858189,3909.7,3909.6,3.66340642]
[1760773401723,2.604,3909.7,3909.6,3.66340642]
[1760773403246,2.604,3909.7,3909.5,2.55982503]
[1760773403549,2.604,3909.7,3909.5,0.002]
[1760773403752,2.604,3909.7,3909.6,0.472]
[1760773404125,2.604,3909.7,3909.5,2.5598274]
[1760773404457,0.03195632,3909.6,3909.5,0.002]
[1760773404655,3.0751,3909.7,3909.5,0.002]
[1760773404955,0.03195632,3909.6,3909.5,0.002]
[1760773405159,0.50305632,3909.6,3909.5,0.002]
[1760773406657,2.604,3909.7,3909.5,0.002]
[1760773408245,2.6485791,3909.7,3909.5,0.002]
[1760773408931,0.50305632,3909.6,3909.5,0.002]
[1760773410162,1.05442438,3909.6,3909.5,0.002]
[1760773411061,1.01532438,3909.6,3909.5,0.002]
[1760773411836,3.5731308,3909.6,3909.5,0.002]
[1760773413160,1.01532438,3909.6,3909.5,0.002]
[1760773414347,3.5731308,3909.6,3909.5,0.002]
[1760773415159,3.61771388,3909.6,3909.5,0.002]
[1760773415357,12.02867581,3909.6,3909.5,0.002]
[1760773415540,17.14089019,3909.6,3909.5,0.002]
[1760773415740,13.36478887,3909.6,3909.5,0.002]
[1760773415941,17.14089019,3909.6,3909.5,0.002]
[1760773416162,13.36478887,3909.6,3909.5,0.002]
[1760773418249,17.14089019,3909.6,3909.5,0.002]
[1760773418550,17.14089019,3909.6,3909.2,0.002]
[1760773418551,4.91960271,3909.3,3909.2,0.002]
[1760773418768,12.59599622,3909.3,3909.2,0.002]
[1760773419085,11.64847209,3909.3,3909.2,0.002]
[1760773419243,10.8258452,3909.3,3909.2,0.002]
[1760773419572,13.4288452,3909.3,3909.2,0.002]
[1760773420138,12.04977344,3909.3,3909.2,0.002]
[1760773420346,13.42884234,3909.3,3909.2,0.002]
[1760773420861,13.73180427,3909.3,3909.2,0.002]
[1760773421640,10.82584234,3909.3,3909.2,0.002]
[1760773421854,5.23867212,3909.3,3909.2,0.002]
[1760773422046,11.21747209,3909.3,3909.2,0.002]
[1760773423270,8.65946938,3909.3,3909.2,0.002]
[1760773423479,11.21747209,3909.3,3909.2,0.002]
[1760773424179,11.64947209,3909.3,3909.2,0.002]
[1760773424772,11.95243402,3909.3,3909.2,0.002]
[1760773425071,18.33243402,3909.3,3909.2,0.002]
[1760773425283,18.64437155,3909.3,3909.2,0.002]
[1760773425979,18.64437155,3909.3,3908.7,0.002]
[1760773425980,6.73938592,3908.8,3908.7,0.002]
[1760773426185,17.5977993,3908.8,3908.7,0.002]
[1760773426345,18.0297993,3908.8,3908.7,0.002]
[1760773426542,18.07439514,3908.8,3908.7,0.002]
[1760773427167,40.1319026,3908.8,3908.7,0.002]
[1760773427367,23.4562156,3908.8,3908.7,0.002]
[1760773428255,27.0822866,3908.8,3908.7,0.002]
[1760773428450,27.48364945,3908.8,3908.7,0.002]
[1760773429148,19.09065745,3908.8,3908.7,0.002]
[1760773429349,29.22138629,3908.8,3908.7,0.002]
[1760773429578,32.99748761,3908.8,3908.7,0.002]
[1760773429979,2.55850645,3908.6,3908.3,0.002]
[1760773430306,8.06269307,3908.4,3908.3,0.002]
[1760773430446,12.39016245,3908.4,3908.3,0.002]
[1760773430651,15.42616245,3908.4,3908.3,0.002]
[1760773430878,22.25214925,3908.4,3908.3,0.002]
[1760773431999,15.44004793,3908.4,3908.3,0.002]
[1760773432287,18.04404793,3908.4,3908.3,0.002]
[1760773433457,14.26794661,3908.4,3908.3,0.002]
[1760773433651,9.10535486,3908.4,3908.3,0.002]
[1760773433883,11.70935486,3908.4,3908.3,0.4341]
[1760773434104,14.26794661,3908.4,3908.3,0.4341]
[1760773434308,14.26794661,3908.4,3908.3,0.002]
[1760773434526,14.29855834,3908.4,3908.3,0.002]
[1760773434826,14.61049587,3908.4,3908.3,0.002]
[1760773435179,14.9134578,3908.4,3908.3,0.002]
[1760773436426,19.3586338,3908.4,3908.3,0.002]
[1760773437091,14.9134578,3908.4,3908.3,0.002]
[1760773438612,14.4814578,3908.4,3908.3,0.002]
[1760773438984,14.17849587,3908.4,3908.3,0.002]
[1760773440992,14.63709587,3908.4,3908.3,0.002]
[1760773441590,16.01265569,3908.4,3908.3,0.002]
[1760773442616,27.5474118,3908.4,3908.3,0.002]
[1760773442816,2.55885363,3908.0,3907.9,0.002]
[1760773443003,12.43611554,3908.0,3907.9,0.002]
[1760773443186,12.40415922,3908.0,3907.9,0.002]
[1760773443387,13.30877068,3908.0,3907.9,0.002]
[1760773444695,12.85017068,3908.0,3907.9,0.002]
[1760773445027,9.57796813,3908.0,3907.9,0.458]
[1760773445228,12.13682176,3908.0,3907.9,0.002]
[1760773449200,13.86482176,3908.0,3907.9,0.002]
[1760773449416,4.28711556,3907.6,3907.5,0.002]
[1760773449622,25.62904786,3907.6,3907.5,0.002]
[1760773449820,26.05419154,3907.6,3907.5,0.002]
[1760773450020,26.45566088,3907.6,3907.5,0.002]
[1760773450429,15.91357095,3907.6,3907.5,0.002]
[1760773450736,27.06630381,3907.6,3907.5,0.002]
[1760773451306,12.99763342,3907.6,3907.5,0.002]
[1760773451562,12.99763342,3907.6,3907.5,0.458]
[1760773451563,8.65736806,3907.6,3907.5,0.458]
[1760773451729,11.26136806,3907.6,3907.5,0.458]
[1760773453638,4.92796775,3907.6,3907.5,0.458]
[1760773454605,2.32396775,3907.6,3907.5,0.458]
[1760773454824,4.92796775,3907.6,3907.5,0.458]
[1760773455632,0.59596775,3907.6,3907.5,3.01718106]
[1760773455838,3.32716775,3907.6,3907.5,0.458]
[1760773456133,3.32716775,3907.6,3907.5,3.01718106]
[1760773456341,0.59596775,3907.6,3907.5,3.01718106]
[1760773456509,3.19996775,3907.6,3907.5,3.01718106]
[1760773456711,3.19996775,3907.6,3907.5,0.458]
[1760773456904,3.32716775,3907.6,3907.5,0.458]
[1760773457834,3.32716775,3907.6,3907.5,3.01718106]
[1760773459013,0.72316775,3907.6,3907.5,0.458]
[1760773459335,3.32716775,3907.6,3907.5,3.01718106]
[1760773460144,3.32716775,3907.6,3907.5,0.458]
[1760773460365,3.32716775,3907.6,3907.5,3.01718106]
[1760773460920,0.72316775,3907.6,3907.5,3.01718106]
[1760773461127,3.32716775,3907.6,3907.5,3.01718106]
[1760773461312,2.77579969,3907.6,3907.5,3.01718106]
[1760773461517,2.64859969,3907.6,3907.5,3.01718106]
[1760773461717,0.04459969,3907.6,3907.5,3.01718106]
[1760773461949,2.64859969,3907.6,3907.5,3.01718106]
[1760773463921,2.64859969,3907.6,3907.5,2.56118106]
[1760773464130,2.64859969,3907.6,3907.5,3.01718106]
[1760773464850,3.20085401,3907.6,3907.5,0.002]
[1760773465551,3.20085401,3907.6,3907.5,0.458]
[1760773465854,3.20083357,3907.6,3907.5,0.002]
[1760773466362,3.65793357,3907.6,3907.5,0.002]
[1760773466524,3.68988989,3907.6,3907.5,0.002]
[1760773467339,3.23278989,3907.6,3907.5,0.002]
[1760773467540,3.20083357,3907.6,3907.5,0.002]
[1760773468352,0.59683357,3907.6,3907.5,3.01718106]
[1760773468535,3.20083357,3907.6,3907.5,3.01718106]
[1760773468728,2.604,3907.6,3907.5,3.01718106]
[1760773468929,0.1272,3907.7,3907.6,2.55911556]
[1760773469125,3.28345972,3907.7,3907.6,3.02071556]
[1760773470238,2.7312,3907.7,3907.6,3.02071556]
[1760773470961,3.28338993,3907.7,3907.6,3.02071556]
[1760773471255,2.7312,3907.7,3907.6,3.02071556]
[1760773472054,2.77579471,3907.7,3907.6,3.02071556]
[1760773472360,9.5787349,3907.7,3907.5,0.002]
[1760773472555,0.55214019,3907.6,3907.5,0.002]
[1760773472756,0.55215828,3907.6,3907.5,0.002]
[1760773473132,9.02659471,3907.7,3907.5,2.56118106]
[1760773473657,9.02659471,3907.7,3907.5,0.002]
[1760773473862,0.58414234,3907.6,3907.5,0.002]
[1760773474163,3.15518602,3907.6,3907.5,2.56118106]
[1760773474329,0.55218602,3907.6,3907.5,3.02278106]
[1760773474533,6.42259471,3907.7,3907.6,2.55911556]
[1760773474736,9.02559471,3907.7,3907.6,3.02071556]
[1760773475347,8.981,3907.7,3907.6,3.02071556]
[1760773476476,8.981,3907.7,3907.6,2.55911556]
[1760773477347,8.981,3907.7,3907.6,3.02071556]
[1760773477762,8.981,3907.7,3907.6,2.55911556]
[1760773480058,9.53320589,3907.7,3907.5,2.56112351]
[1760773480267,0.55220589,3907.6,3907.5,2.56112351]
[1760773480445,8.981,3907.7,3907.6,2.55911556]
[1760773480645,9.53343676,3907.7,3907.6,2.55911556]
[1760773482247,9.97453676,3907.7,3907.5,0.002]
[1760773482573,0.58439308,3907.6,3907.5,0.002]
[1760773482903,1.02549308,3907.6,3907.5,2.56118106]
[1760773483242,0.58439308,3907.6,3907.5,2.56118106]
[1760773487461,0.58506855,3907.6,3907.5,2.56118106]
[1760773487657,1.02616855,3907.6,3907.5,2.56118106]
[1760773488985,0.58506855,3907.6,3907.5,2.56118106]
[1760773490284,0.55311223,3907.6,3907.5,2.56118106]
[1760773493299,0.001,3907.9,3907.6,3.19271556]
[1760773493453,0.001,3907.9,3907.8,3.19258459]
[1760773493854,0.001,3907.9,3907.8,3.65418459]
[1760773494603,0.001,3907.9,3907.8,2.55898459]
[1760773499192,0.001,3907.9,3907.7,2.55904407]
[1760773499375,0.4716,3907.8,3907.7,2.55904407]
[1760773499577,0.001,3907.9,3907.7,2.55904407]
[1760773499771,0.51719272,3907.9,3907.8,2.55898459]
[1760773499997,1.06966946,3907.9,3907.8,2.55898459]
[1760773500173,1.06966946,3907.9,3907.5,0.002]
[1760773500385,1.05603306,3907.8,3907.5,0.002]
[1760773500610,3.15547674,3907.7,3907.5,0.002]
[1760773500812,4.8395923,3907.6,3907.5,0.002]
[1760773500988,5.34314862,3907.6,3907.5,0.002]
[1760773501311,6.69087276,3907.6,3907.5,0.002]
[1760773501606,5.3111923,3907.6,3907.5,0.002]
[1760773501909,6.69211182,3907.6,3907.5,0.002]
[1760773503079,5.3111923,3907.6,3907.5,0.002]
[1760773504102,5.35579648,3907.6,3907.5,0.002]
[1760773504614,0.59708092,3907.6,3907.5,0.002]
[1760773504801,0.04460418,3907.6,3907.5,3.03198106]
[1760773505109,2.64760418,3907.6,3907.5,3.03198106]
[1760773506520,0.001,3907.9,3907.5,3.03198106]
[1760773506521,0.001,3907.9,3907.8,2.55898459]
[1760773506680,2.604,3907.9,3907.8,2.55898459]
[1760773506885,2.604,3907.9,3907.8,3.02978459]
[1760773507184,2.604,3907.9,3907.8,3.66338459]
[1760773507514,2.604,3907.9,3907.8,3.79058459]
[1760773508085,0.001,3907.9,3907.8,3.79058459]
[1760773508615,0.001,3907.9,3907.8,0.1272]
[1760773508797,0.5786,3907.9,3907.5,0.002]
[1760773508983,3.08535632,3907.8,3907.5,0.002]
[1760773509193,2.63495632,3907.8,3907.5,0.002]
[1760773509397,1.00185092,3907.7,3907.5,0.002]
[1760773509797,2.603,3907.8,3907.5,0.002]
[1760773509798,1.03380724,3907.6,3907.5,0.002]
[1760773511243,0.55145092,3907.6,3907.5,0.002]
[1760773511439,4.53638472,3907.9,3907.5,0.002]
[1760773511440,0.55145092,3907.7,3907.5,0.002]
[1760773511644,0.001,3907.9,3907.5,0.002]
[1760773511645,3.15445092,3907.6,3907.5,0.002]
[1760773511942,3.60485092,3907.6,3907.5,0.002]
[1760773512311,3.63680724,3907.6,3907.5,0.002]
[1760773514212,5.36480724,3907.6,3907.5,0.002]
[1760773514414,5.33285092,3907.6,3907.5,0.002]
[1760773514632,7.89196648,3907.6,3907.5,0.002]
[1760773516819,5.33285092,3907.6,3907.5,0.002]
[1760773517020,8.7020541,3907.6,3907.5,0.002]
[1760773517225,9.5770541,3907.6,3907.5,0.002]
[1760773518129,12.58656966,3907.6,3907.5,0.002]
[1760773518508,10.0274541,3907.6,3907.5,0.002]
[1760773518710,12.58656966,3907.6,3907.5,0.002]
[1760773518939,14.31456966,3907.6,3907.5,0.002]
[1760773523647,17.64473357,3907.6,3907.5,0.002]
[1760773523849,15.04173357,3907.6,3907.5,0.002]
[1760773524031,18.09513357,3907.6,3907.5,0.002]
[1760773524861,17.64473357,3907.6,3907.5,0.002]
[1760773525561,17.64433951,3907.6,3907.5,0.002]
[1760773526437,18.09473951,3907.6,3907.5,0.002]
[1760773530245,16.36673951,3907.6,3907.5,0.002]
[1760773530450,18.09473951,3907.6,3907.5,0.002]
[1760773531259,19.47565903,3907.6,3907.5,0.002]
[1760773532063,31.28481151,3907.6,3907.5,0.002]
[1760773532251,22.92198333,3907.6,3907.5,0.002]
[1760773532451,18.05013633,3907.6,3907.5,0.002]
[1760773535060,18.0947421,3907.6,3907.5,0.002]
[1760773535578,24.97073415,3907.6,3907.5,0.002]
[1760773535797,2.55937755,3907.2,3907.1,0.002]
[1760773536066,19.00937547,3907.2,3907.1,0.002]
[1760773536362,19.46542796,3907.2,3907.1,0.002]
[1760773536536,23.24599187,3907.2,3907.1,0.002]
[1760773536738,21.86657104,3907.2,3907.1,0.002]
[1760773536929,22.26809096,3907.2,3907.1,0.002]
[1760773537462,29.99822283,3907.2,3907.1,0.002]
[1760773537640,28.74774583,3907.2,3907.1,0.002]
[1760773538165,28.74774583,3907.2,3905.6,0.002]
[1760773538166,4.92196049,3905.7,3905.6,0.002]
[1760773538369,15.69116061,3905.7,3905.6,0.002]
[1760773538542,13.24031238,3905.7,3905.6,0.002]
[1760773538745,15.08175603,3905.7,3905.6,0.002]
[1760773539062,15.65410938,3905.7,3905.6,0.002]
[1760773539232,13.81266573,3905.7,3905.6,0.002]
[1760773539930,23.91794773,3905.7,3905.6,0.002]
[1760773540133,18.50892373,3905.7,3905.6,0.002]
[1760773540481,18.89929498,3905.7,3905.6,0.002]
[1760773541173,21.72182798,3905.7,3905.6,0.002]
[1760773541381,4.28862274,3905.3,3904.4,0.4469]
[1760773541678,11.25619983,3905.3,3904.4,0.4469]
[1760773541843,12.08857463,3905.3,3904.4,0.4469]
[1760773542044,12.49029737,3905.3,3904.4,0.4469]
[1760773542245,12.04689737,3905.3,3904.4,0.4469]
[1760773542447,11.62596625,3905.3,3904.2,0.1357]
[1760773542638,11.62596625,3905.3,3904.6,0.4469]
[1760773543380,18.00196625,3905.3,3904.6,0.4469]
[1760773543585,15.39796625,3905.3,3904.6,0.4469]
[1760773543788,18.00296625,3905.3,3905.1,0.1657]
[1760773543969,18.00296625,3905.3,3905.2,0.4489]
[1760773544280,18.00296625,3905.3,3905.2,0.002]
[1760773544669,18.04760123,3905.3,3905.2,0.002]
[1760773544866,15.48697849,3905.3,3905.2,0.4489]
[1760773545166,15.08525575,3905.3,3905.2,0.4489]
[1760773545345,17.64587849,3905.3,3905.2,0.4489]
[1760773546467,15.08525575,3905.3,3905.2,0.4489]
[1760773547367,17.64587849,3905.3,3905.2,0.4489]
[1760773548235,18.0475615,3905.3,3905.2,0.4489]
[1760773548966,7.37337485,3905.3,3905.2,0.4489]
[1760773549134,9.02463498,3905.3,3905.2,0.4489]
[1760773549336,9.5741578,3905.3,3905.2,0.4489]
[1760773549540,9.02463498,3905.3,3905.2,0.4489]
[1760773549872,11.30216769,3905.3,3905.2,0.4489]
[1760773550072,10.75263498,3905.3,3905.2,0.4489]
[1760773550259,11.30217112,3905.3,3905.2,0.4489]
[1760773552086,11.30217112,3905.3,3905.2,0.002]
[1760773552087,10.35074101,3905.3,3905.2,0.002]
[1760773552477,10.35074101,3905.3,3905.2,0.4489]
[1760773552677,10.39537017,3905.3,3905.2,0.4489]
[1760773552992,10.35074101,3905.3,3905.2,0.4489]
[1760773554493,10.35074101,3905.3,3905.2,0.002]
[1760773555072,10.3953706,3905.3,3905.2,0.002]
[1760773555291,12.95599334,3905.3,3905.2,0.002]
[1760773555796,13.37692446,3905.3,3905.2,0.002]